[Event "95th Caplin Hastings Congress"]
[Site "Hastings"]
[Date "2019.12.30"]
[Round "3.15"]
[White "Gallagher, Daniel GH"]
[Black "Cherniaev, Alexander"]
[Result "1/2-1/2"]
[ECO "B00"]
[WhiteElo "2171"]
[BlackElo "2419"]
[Annotator "NA"]
[PlyCount "127"]
[EventDate "2019.12.28"]
[EventType "swiss"]
[EventCountry "ENG"]
[SourceTitle "playchess.com"]
[Source "ChessBase"]
[SourceQuality "1"]
[TimeControl "40/6600+30:3000+30"]

1. e4 {[%emt 0:09:37]} b6 {[%emt 0:17:52]} 2. d4 {[%emt 0:00:07]} Bb7 {[%emt 0:00:11]} 3. Bd3 {[%emt 0:00:07]} Nf6 {[%emt 0:00:05]} 4. Qe2 {[%emt 0:03:42]} Nc6 {[%emt 0:00:07]} 5. c3 {[%emt 0:12:58]} e5 {[%emt 0:00:05]} 6. d5 {[%emt 0:00:03]} Ne7 {[%emt 0:00:07]} 7. Nf3 {[%emt 0:04:51]} Ng6 {[%emt 0:00:08]} 8. O-O {[%emt 0:00:40]} c6 {[%emt 0:06:50]} 9. c4 {[%emt 0:01:13]} Bc5 {[%emt 0:01:23]} 10. Nc3 {[%emt 0:01:22]} O-O {[%emt 0:00:59]} 11. a3 {[%emt 0:06:46]} a5 {[%emt 0:01:26]} 12. Na4 {[%emt 0:02:14]} Re8 {[%emt 0:27:32]} 13. Rd1 {[%emt 0:12:16]} d6 {[%emt 0:11:46]} 14. Nxc5 {[%emt 0:16:25]} bxc5 {[%emt 0:00:11]} 15. b3 {[%emt 0:00:58]} cxd5 {[%emt 0:09:47]} 16. cxd5 {[%emt 0:00:08]} Nf4 {[%emt 0:00:03]} 17. Bxf4 {[%emt 0:13:03]} exf4 {[%emt 0:00:03]} 18. Qc2 {[%emt 0:00:08]} Ba6 {[%emt 0:04:33]} 19. Bxa6 {[%emt 0:02:43]} Rxa6 {[%emt 0:00:04]} 20. Re1 {[%emt 0:00:10]} Nd7 {[%emt 0:01:19]} 21. Qc3 {[%emt 0:02:14]} Qf6 {[%emt 0:06:51]} 22. Qxf6 {[%emt 0:01:59]} gxf6 {[%emt 0:00:02]} 23. Nd2 {[%emt 0:05:05]} Rb8 {[%emt 0:10:12]} 24. Rec1 {[%emt 0:07:17]} Ne5 {[%emt 0:03:46]} 25. Rc3 {[%emt 0:00:36]} a4 {[%emt 0:01:22]} 26. Rb1 {[%emt 0:02:36]} axb3 {[%emt 0:05:50]} 27. Rcxb3 {[%emt 0:00:16]} Rba8 {[%emt 0:01:28]} 28. Rb8+ {[%emt 0:00:34]} Rxb8 {[%emt 0:00:12]} 29. Rxb8+ {[%emt 0:00:10]} Kg7 {[%emt 0:00:04]} 30. Rb3 {[%emt 0:00:07]} f5 {[%emt 0:03:31]} 31. f3 {[%emt 0:01:01]} fxe4 {[%emt 0:01:01]} 32. fxe4 {[%emt 0:00:06]} Kg6 {[%emt 0:02:36]} 33. g3 {[%emt 0:03:20]} fxg3 {[%emt 0:00:10]} 34. Rxg3+ {[%emt 0:00:34]} Kf6 {[%emt 0:00:24]} 35. Rb3 {[%emt 0:01:12]} Ra4 {[%emt 0:01:11]} 36. Kf2 {[%emt 0:02:16]} Nc4 {[%emt 0:03:11]} 37. Rf3+ {[%emt 0:03:26]} Ke7 {[%emt 0:00:34]} 38. Nxc4 {[%emt 0:01:12]} Rxc4 {[%emt 0:00:01]} 39. Re3 {[%emt 0:01:13]} Kf6 {[%emt 0:00:43]} 40. Rf3+ {[%emt 0:02:06]} Ke7 {[%emt 0:00:39]} 41. Ke3 {[%emt 0:09:11]} Rc2 {[%emt 0:09:32]} 42. h3 {[%emt 0:00:51]} Rc4 {[%emt 0:18:05]} 43. Kf4 {[%emt 0:03:52]} Kf6 {[%emt 0:00:01]} 44. Ke3+ {[%emt 0:00:29]} Ke7 {[%emt 0:02:19]} 45. Kf4 {[%emt 0:00:10]} h6 {[%emt 0:04:20]} 46. Ke3 {[%emt 0:03:20]} Rc1 {[%emt 0:01:27]} 47. Kd3 {[%emt 0:06:46]} h5 {[%emt 0:01:35]} 48. Ke3 {[%emt 0:01:48]} h4 {[%emt 0:00:33]} 49. Kd2 {[%emt 0:05:48]} Rg1 {[%emt 0:00:46]} 50. Rf4 {[%emt 0:07:07]} Rg2+ {[%emt 0:06:34]} 51. Kd1 {[%emt 0:00:05]} Rg3 {[%emt 0:00:16]} 52. Rxh4 {[%emt 0:00:05]} Rxa3 {[%emt 0:00:10]} 53. Kd2 {[%emt 0:01:21]} Kf6 {[%emt 0:00:53]} 54. Rh5 {[%emt 0:00:07]} Kg6 {[%emt 0:00:22]} 55. Rh8 {[%emt 0:00:48]} Kf6 {[%emt 0:01:08]} 56. Rh5 {[%emt 0:00:10]} Rg3 {[%emt 0:01:42]} 57. h4 {[%emt 0:05:31]} Rh3 {[%emt 0:01:10]} 58. Rf5+ {[%emt 0:01:50]} Kg6 {[%emt 0:01:05]} 59. h5+ {[%emt 0:01:08]} Kg7 {[%emt 0:01:16]} 60. Rg5+ {[%emt 0:00:47]} Kf6 {[%emt 0:01:32]} 61. Rf5+ {[%emt 0:00:06]} Ke7 {[%emt 0:00:04]} 62. Ke2 {[%emt 0:00:27]} f6 {[%emt 0:03:22]} 63. Kd2 {[%emt 0:00:05]} Kf7 {[%emt 0:01:32]} 64. Ke2 {[%emt 0:00:12]} 1/2-1/2

[Event "95th Caplin Hastings Congress"]
[Site "Hastings"]
[Date "2019.12.30"]
[Round "3.16"]
[White "Lalic, Bogdan"]
[Black "Eames, Robert S"]
[Result "1-0"]
[ECO "E52"]
[WhiteElo "2414"]
[BlackElo "2150"]
[Annotator "NA"]
[PlyCount "71"]
[EventDate "2019.12.28"]
[EventType "swiss"]
[EventCountry "ENG"]
[SourceTitle "playchess.com"]
[Source "ChessBase"]
[SourceQuality "1"]
[TimeControl "40/6600+30:3000+30"]

1. d4 {[%emt 0:09:35]} Nf6 {[%emt 0:09:40]} 2. c4 {[%emt 0:00:07]} e6 {[%emt 0:00:23]} 3. Nc3 {[%emt 0:00:08]} Bb4 {[%emt 0:00:22]} 4. e3 {[%emt 0:00:08]} d5 {[%emt 0:00:45]} 5. Nf3 {[%emt 0:01:33]} O-O {[%emt 0:00:44]} 6. Bd3 {[%emt 0:00:05]} b6 {[%emt 0:02:54]} 7. O-O {[%emt 0:00:32]} Ba6 {[%emt 0:01:08]} 8. cxd5 {[%emt 0:01:05]} exd5 {[%emt 0:03:52]} 9. Bxa6 {[%emt 0:00:57]} Nxa6 {[%emt 0:00:07]} 10. Qd3 {[%emt 0:03:46]} Qc8 {[%emt 0:02:48]} 11. Bd2 {[%emt 0:00:09]} Qb7 {[%emt 0:01:41]} 12. a3 {[%emt 0:01:06]} Bd6 {[%emt 0:06:07]} 13. b4 {[%emt 0:00:22]} Ne4 {[%emt 0:02:53]} 14. b5 {[%emt 0:03:46]} Nb8 {[%emt 0:00:54]} 15. Rfc1 {[%emt 0:00:06]} Nd7 {[%emt 0:03:13]} 16. Be1 {[%emt 0:00:12]} Rae8 {[%emt 0:01:54]} 17. Na2 {[%emt 0:03:00]} f5 {[%emt 0:02:46]} 18. Bb4 {[%emt 0:00:12]} f4 {[%emt 0:02:10]} 19. Rc2 {[%emt 0:04:16]} fxe3 {[%emt 0:03:36]} 20. Qxe3 {[%emt 0:00:44]} Bf4 {[%emt 0:09:33]} 21. Qb3 {[%emt 0:00:51]} Rf5 {[%emt 0:00:32]} 22. g3 {[%emt 0:07:43]} Bh6 {[%emt 0:10:32]} 23. Re1 {[%emt 0:04:27]} Ndf6 {[%emt 0:04:21]} 24. Ne5 {[%emt 0:16:25]} Ng5 {[%emt 0:06:58]} 25. f4 {[%emt 0:00:38]} Ne6 {[%emt 0:01:05]} 26. Nc6 {[%emt 0:08:42]} Kf7 {[%emt 0:06:06]} 27. Rce2 {[%emt 0:05:37]} Qc8 {[%emt 0:02:26]} 28. Nc3 {[%emt 0:02:24]} Bxf4 {[%emt 0:08:06]} 29. gxf4 {[%emt 0:01:35]} Nxf4 {[%emt 0:01:08]} 30. Rxe8 {[%emt 0:09:14]} Nxe8 {[%emt 0:19:33]} 31. Ne4 {[%emt 0:04:52]} Rh5 {[%emt 0:02:55]} 32. Qf3 {[%emt 0:07:05]} Qf5 {[%emt 0:00:52]} 33. Ng3 {[%emt 0:04:48]} Nh3+ {[%emt 0:00:29]} 34. Kg2 {[%emt 0:00:06]} Qxf3+ {[%emt 0:02:05]} 35. Kxf3 {[%emt 0:00:06]} Rh6 {[%emt 0:00:25]} 36. Nd8+ {[%emt 0:00:53]} 1-0

[Event "95th Caplin Hastings Congress"]
[Site "Hastings"]
[Date "2019.12.30"]
[Round "3.17"]
[White "Sucikova, Svetlana"]
[Black "Murphy, Conor E"]
[Result "1/2-1/2"]
[ECO "E17"]
[WhiteElo "2160"]
[BlackElo "2407"]
[Annotator "NA"]
[PlyCount "146"]
[EventDate "2019.12.28"]
[EventType "swiss"]
[EventCountry "ENG"]
[SourceTitle "playchess.com"]
[Source "ChessBase"]
[SourceQuality "1"]
[TimeControl "40/6600+30:3000+30"]

1. Nf3 {[%emt 0:00:08]} d5 {[%emt 0:00:25]} 2. c4 {[%emt 0:01:27]} e6 {[%emt 0:09:53]} 3. g3 {[%emt 0:10:24]} Nf6 {[%emt 0:00:14]} 4. Bg2 {[%emt 0:00:38]} Be7 {[%emt 0:00:26]} 5. O-O {[%emt 0:00:21]} O-O {[%emt 0:00:07]} 6. b3 {[%emt 0:00:07]} b6 {[%emt 0:00:40]} 7. Bb2 {[%emt 0:00:27]} c5 {[%emt 0:02:17]} 8. cxd5 {[%emt 0:04:32]} Nxd5 {[%emt 0:00:53]} 9. d4 {[%emt 0:00:57]} Nd7 {[%emt 0:03:55]} 10. Nc3 {[%emt 0:04:38]} Bb7 {[%emt 0:00:00]} 11. Nxd5 {[%emt 0:04:45]} Bxd5 {[%emt 0:01:16]} 12. e3 {[%emt 0:13:45]} Qc8 {[%emt 0:01:30]} 13. Qe2 {[%emt 0:00:00]} Qb7 {[%emt 0:02:07]} 14. Rfd1 {[%emt 0:08:18]} Rfd8 {[%emt 0:03:50]} 15. Rac1 {[%emt 0:11:21]} Bf6 {[%emt 0:37:13]} 16. dxc5 Bxb2 {[%emt 0:39:30]} 17. Qxb2 {[%emt 0:02:48]} Nxc5 {[%emt 0:02:27]} 18. Qd4 {[%emt 0:08:46]} Qe7 {[%emt 0:02:33]} 19. Qh4 {[%emt 0:00:00]} Qxh4 20. Nxh4 {[%emt 0:00:00]} Bxg2 21. Nxg2 {[%emt 0:10:43]} Nd3 {[%emt 0:12:30]} 22. Rc2 {[%emt 0:04:22]} Ne5 {[%emt 0:00:00]} 23. Rdc1 {[%emt 0:00:00]} Nf3+ {[%emt 0:00:00]} 24. Kh1 {[%emt 0:02:51]} g5 {[%emt 0:01:44]} 25. Ne1 {[%emt 0:00:06]} Ne5 {[%emt 0:08:33]} 26. Kg2 {[%emt 0:00:00]} g4 {[%emt 0:00:00]} 27. Kf1 {[%emt 0:00:54]} Rd6 {[%emt 0:04:26]} 28. Rc8+ {[%emt 0:02:38]} Rxc8 {[%emt 0:00:00]} 29. Rxc8+ {[%emt 0:00:13]} Kg7 {[%emt 0:00:13]} 30. Ke2 {[%emt 0:04:02]} Nc6 {[%emt 0:00:00]} 31. Nd3 {[%emt 0:02:49]} e5 {[%emt 0:00:49]} 32. Re8 {[%emt 0:00:00]} f6 {[%emt 0:00:00]} 33. a3 {[%emt 0:02:37]} Rd7 {[%emt 0:02:06]} 34. Rc8 {[%emt 0:01:04]} Nd8 {[%emt 0:06:55]} 35. b4 {[%emt 0:05:43]} Nf7 {[%emt 0:00:00]} 36. a4 {[%emt 0:01:24]} Ng5 {[%emt 0:00:00]} 37. Ne1 {[%emt 0:01:03]} e4 {[%emt 0:02:29]} 38. Rc4 {[%emt 0:03:08]} Kg6 {[%emt 0:08:33]} 39. Rc8 {[%emt 0:00:06]} Kf5 {[%emt 0:02:13]} 40. Rc4 {[%emt 0:00:00]} Ke5 41. Rc2 {[%emt 0:15:46]} Nf3 {[%emt 0:09:49]} 42. h4 {[%emt 0:03:26]} gxh3 {[%emt 0:00:00]} 43. Nxf3+ {[%emt 0:00:20]} exf3+ {[%emt 0:00:00]} 44. Kxf3 {[%emt 0:09:22]} Rd1 {[%emt 0:00:14]} 45. Kg4 {[%emt 0:00:59]} Ke4 {[%emt 0:00:00]} 46. f4 {[%emt 0:09:48]} Rh1 {[%emt 0:10:20]} 47. Rc7 {[%emt 0:00:57]} f5+ {[%emt 0:00:00]} 48. Kh4 {[%emt 0:03:32]} Kf3 {[%emt 0:00:00]} 49. Rc3 {[%emt 0:07:18]} Rb1 {[%emt 0:00:00]} 50. e4+ {[%emt 0:00:13]} Kxe4 {[%emt 0:00:00]} 51. Kxh3 {[%emt 0:01:01]} Rxb4 {[%emt 0:00:00]} 52. a5 {[%emt 0:00:19]} Rb5 {[%emt 0:03:36]} 53. axb6 {[%emt 0:00:32]} axb6 {[%emt 0:00:14]} 54. Kh4 {[%emt 0:01:38]} Rc5 {[%emt 0:00:00]} 55. Ra3 {[%emt 0:00:01]} b5 {[%emt 0:00:00]} 56. Ra7 {[%emt 0:00:15]} Kd4 {[%emt 0:00:00]} 57. Rxh7 {[%emt 0:01:04]} b4 {[%emt 0:00:00]} 58. Rb7 {[%emt 0:01:44]} Kc4 {[%emt 0:01:10]} 59. g4 {[%emt 0:00:52]} Rb5 {[%emt 0:00:00]} 60. Rc7+ {[%emt 0:02:03]} Kd3 {[%emt 0:00:18]} 61. gxf5 {[%emt 0:00:34]} b3 {[%emt 0:00:25]} 62. Rc1 {[%emt 0:03:58]} Rxf5 {[%emt 0:04:10]} 63. Kg4 {[%emt 0:00:00]} b2 {[%emt 0:00:30]} 64. Rb1 {[%emt 0:00:00]} Rb5 {[%emt 0:00:14]} 65. f5 {[%emt 0:00:00]} Kc2 {[%emt 0:00:03]} 66. Rxb2+ {[%emt 0:00:21]} Rxb2 {[%emt 0:01:20]} 67. f6 {[%emt 0:00:00]} Kd3 {[%emt 0:02:41]} 68. Kg5 {[%emt 0:01:26]} Ke4 {[%emt 0:00:00]} 69. f7 {[%emt 0:00:43]} Rf2 {[%emt 0:00:00]} 70. Kg6 {[%emt 0:00:29]} Ke5 {[%emt 0:00:33]} 71. Kg7 {[%emt 0:00:38]} Rg2+ {[%emt 0:00:58]} 72. Kh7 {[%emt 0:00:17]} Rf2 {[%emt 0:00:00]} 73. Kg7 {[%emt 0:00:54]} Rxf7+ {[%emt 0:00:00]} 1/2-1/2

[Event "95th Caplin Hastings Congress"]
[Site "Hastings"]
[Date "2019.12.30"]
[Round "3.18"]
[White "Fishbein, Mitch"]
[Black "Vaishali R"]
[Result "1/2-1/2"]
[ECO "A16"]
[WhiteElo "2151"]
[BlackElo "2376"]
[Annotator "NA"]
[PlyCount "98"]
[EventDate "2019.12.28"]
[EventType "swiss"]
[EventCountry "ENG"]
[SourceTitle "playchess.com"]
[Source "ChessBase"]
[SourceQuality "1"]
[TimeControl "40/6600+30:3000+30"]

1. Nf3 {[%emt 0:09:31]} Nf6 {[%emt 0:00:47]} 2. c4 g6 {[%emt 0:09:15]} 3. Nc3 {[%emt 0:01:03]} d5 {[%emt 0:00:09]} 4. cxd5 {[%emt 0:00:30]} Nxd5 {[%emt 0:00:06]} 5. e4 {[%emt 0:00:48]} Nxc3 {[%emt 0:00:13]} 6. dxc3 {[%emt 0:00:09]} Qxd1+ {[%emt 0:00:06]} 7. Kxd1 {[%emt 0:00:09]} Nd7 {[%emt 0:00:08]} 8. Bf4 {[%emt 0:13:01]} c6 {[%emt 0:00:07]} 9. Kc2 {[%emt 0:06:34]} f6 {[%emt 0:00:22]} 10. Nd2 {[%emt 0:10:10]} e5 {[%emt 0:01:45]} 11. Be3 {[%emt 0:00:41]} a5 {[%emt 0:00:19]} 12. a4 {[%emt 0:06:27]} Bc5 {[%emt 0:00:37]} 13. Bxc5 {[%emt 0:11:15]} Nxc5 {[%emt 0:00:03]} 14. Bc4 {[%emt 0:01:39]} Ke7 {[%emt 0:00:54]} 15. f3 {[%emt 0:02:58]} h5 {[%emt 0:04:12]} 16. h4 {[%emt 0:05:51]} f5 {[%emt 0:08:29]} 17. b3 {[%emt 0:07:05]} fxe4 {[%emt 0:06:50]} 18. Nxe4 {[%emt 0:02:13]} Bf5 {[%emt 0:04:56]} 19. Bd3 {[%emt 0:01:50]} Bxe4 {[%emt 0:01:00]} 20. Bxe4 {[%emt 0:01:50]} Nxe4 {[%emt 0:01:22]} 21. fxe4 {[%emt 0:00:04]} Rhf8 {[%emt 0:00:05]} 22. Raf1 {[%emt 0:06:06]} Rf4 {[%emt 0:01:58]} 23. Rxf4 {[%emt 0:17:28]} exf4 {[%emt 0:00:03]} 24. Rf1 {[%emt 0:04:47]} Rf8 {[%emt 0:00:21]} 25. Kd3 {[%emt 0:00:48]} Ke6 {[%emt 0:01:55]} 26. Ke2 {[%emt 0:00:43]} Ke5 {[%emt 0:03:10]} 27. Rd1 {[%emt 0:00:24]} Kxe4 {[%emt 0:02:12]} 28. Rd4+ {[%emt 0:00:07]} Ke5 {[%emt 0:11:55]} 29. Kf3 {[%emt 0:00:13]} b5 {[%emt 0:17:18]} 30. Re4+ {[%emt 0:01:56]} Kd5 {[%emt 0:00:07]} 31. Rxf4 {[%emt 0:01:13]} Rxf4+ {[%emt 0:00:37]} 32. Kxf4 {[%emt 0:00:01]} bxa4 {[%emt 0:00:06]} 33. bxa4 {[%emt 0:00:05]} Kc4 {[%emt 0:00:04]} 34. Kg5 {[%emt 0:00:05]} Kxc3 {[%emt 0:00:08]} 35. Kxg6 {[%emt 0:00:04]} c5 {[%emt 0:00:04]} 36. Kxh5 {[%emt 0:00:07]} c4 {[%emt 0:00:03]} 37. g4 {[%emt 0:02:27]} Kb4 {[%emt 0:00:26]} 38. g5 {[%emt 0:00:06]} c3 {[%emt 0:00:03]} 39. g6 {[%emt 0:00:04]} c2 {[%emt 0:00:02]} 40. g7 {[%emt 0:00:09]} c1=Q {[%emt 0:00:07]} 41. g8=Q {[%emt 0:50:08]} Kxa4 {[%emt 0:50:11]} 42. Qb8 {[%emt 0:07:19]} Qd1+ {[%emt 0:06:25]} 43. Kg5 {[%emt 0:01:51]} Qd5+ {[%emt 0:00:13]} 44. Kg4 {[%emt 0:01:06]} Qd7+ {[%emt 0:01:42]} 45. Kg5 {[%emt 0:00:00]} Qg7+ {[%emt 0:00:00]} 46. Kf5 {[%emt 0:00:00]} Qh7+ {[%emt 0:00:00]} 47. Kg5 {[%emt 0:00:00]} Qe7+ {[%emt 0:00:00]} 48. Kg4 {[%emt 0:00:00]} Qg7+ {[%emt 0:00:00]} 49. Kf5 {[%emt 0:00:00]} Qh7+ {[%emt 0:00:06]} 1/2-1/2

[Event "95th Caplin Hastings Congress"]
[Site "Hastings"]
[Date "2019.12.30"]
[Round "3.19"]
[White "Gutierrez Carmona, Juan Alejandr"]
[Black "Rudd, Jack"]
[Result "0-1"]
[ECO "C00"]
[WhiteElo "2146"]
[BlackElo "2331"]
[Annotator "NA"]
[PlyCount "58"]
[EventDate "2019.12.28"]
[EventType "swiss"]
[EventCountry "ENG"]
[SourceTitle "playchess.com"]
[Source "ChessBase"]
[SourceQuality "1"]
[TimeControl "40/6600+30:3000+30"]

1. e4 {[%emt 0:14:55]} e6 {[%emt 0:09:35]} 2. Qe2 {[%emt 0:01:21]} e5 {[%emt 0:00:07]} 3. Nf3 {[%emt 0:03:26]} Nc6 {[%emt 0:00:10]} 4. g3 {[%emt 0:00:16]} Bc5 {[%emt 0:00:39]} 5. Bg2 {[%emt 0:00:23]} d6 {[%emt 0:00:07]} 6. c3 {[%emt 0:03:53]} g5 {[%emt 0:06:00]} 7. d4 {[%emt 0:05:30]} exd4 {[%emt 0:00:30]} 8. Bxg5 {[%emt 0:00:22]} f6 {[%emt 0:00:07]} 9. cxd4 {[%emt 0:13:14]} Nxd4 {[%emt 0:00:26]} 10. Nxd4 {[%emt 0:00:14]} fxg5 {[%emt 0:00:09]} 11. Qh5+ {[%emt 0:03:40]} Kf8 {[%emt 0:00:19]} 12. Nb3 {[%emt 0:00:16]} Bb6 {[%emt 0:01:18]} 13. Nc3 {[%emt 0:00:24]} Be6 {[%emt 0:01:54]} 14. O-O-O {[%emt 0:00:59]} Bf7 {[%emt 0:02:53]} 15. Qe2 {[%emt 0:03:00]} Qf6 {[%emt 0:04:58]} 16. Rhf1 {[%emt 0:03:33]} Qh6 {[%emt 0:05:26]} 17. f4 {[%emt 0:03:56]} Ne7 {[%emt 0:02:02]} 18. Kb1 gxf4 {[%emt 0:01:19]} 19. Rxf4 {[%emt 0:02:03]} Ng6 {[%emt 0:00:14]} 20. Rf6 {[%emt 0:00:52]} Kg7 {[%emt 0:01:00]} 21. e5 {[%emt 0:25:51]} Rhf8 {[%emt 0:09:37]} 22. Rdf1 {[%emt 0:05:33]} dxe5 {[%emt 0:01:13]} 23. Bxb7 {[%emt 0:11:38]} Rad8 {[%emt 0:02:26]} 24. Ne4 {[%emt 0:04:53]} Qe3 {[%emt 0:02:34]} 25. Qc2 {[%emt 0:03:05]} a5 {[%emt 0:04:02]} 26. R6f3 {[%emt 0:00:14]} Bxb3 {[%emt 0:00:20]} 27. Qxb3 {[%emt 0:00:02]} Rxf3 {[%emt 0:00:15]} 28. Rxf3 {[%emt 0:00:13]} Qe1+ {[%emt 0:00:05]} 29. Kc2 {[%emt 0:00:23]} Qd1+ {[%emt 0:00:31]} 0-1

[Event "95th Caplin Hastings Congress"]
[Site "Hastings"]
[Date "2019.12.30"]
[Round "3.20"]
[White "Grieve, Harry"]
[Black "De Boer, Bas"]
[Result "1-0"]
[ECO "C44"]
[WhiteElo "2299"]
[BlackElo "2138"]
[Annotator "NA"]
[PlyCount "75"]
[EventDate "2019.12.28"]
[EventType "swiss"]
[EventCountry "ENG"]
[SourceTitle "playchess.com"]
[Source "ChessBase"]
[SourceQuality "1"]
[TimeControl "40/6600+30:3000+30"]

1. e4 {[%emt 0:09:36]} e5 {[%emt 0:09:37]} 2. Nf3 {[%emt 0:00:09]} Nf6 {[%emt 0:00:06]} 3. d3 {[%emt 0:01:24]} Nc6 {[%emt 0:00:24]} 4. Be2 {[%emt 0:00:29]} d5 {[%emt 0:00:58]} 5. Nbd2 {[%emt 0:00:17]} Bd6 {[%emt 0:02:29]} 6. h3 {[%emt 0:00:32]} O-O {[%emt 0:01:23]} 7. c3 {[%emt 0:00:34]} Re8 {[%emt 0:02:45]} 8. Qc2 {[%emt 0:03:35]} a6 {[%emt 0:16:36]} 9. Nf1 {[%emt 0:01:22]} Ne7 {[%emt 0:05:07]} 10. Bg5 {[%emt 0:01:54]} dxe4 {[%emt 0:00:22]} 11. dxe4 {[%emt 0:00:49]} Ng6 {[%emt 0:00:16]} 12. g3 {[%emt 0:06:24]} h6 {[%emt 0:00:24]} 13. Be3 {[%emt 0:02:52]} Be6 {[%emt 0:06:17]} 14. N1d2 {[%emt 0:02:04]} Qc8 {[%emt 0:02:53]} 15. Bf1 {[%emt 0:02:24]} Nd7 {[%emt 0:07:13]} 16. Bc4 {[%emt 0:09:31]} Bc5 {[%emt 0:00:14]} 17. Bxe6 {[%emt 0:09:37]} Rxe6 {[%emt 0:00:03]} 18. Bxc5 {[%emt 0:00:15]} Nxc5 {[%emt 0:00:11]} 19. O-O {[%emt 0:02:25]} Rf6 {[%emt 0:04:23]} 20. Kg2 {[%emt 0:08:31]} Ne6 {[%emt 0:04:48]} 21. Rh1 {[%emt 0:00:02]} Ng5 {[%emt 0:04:45]} 22. Nxg5 {[%emt 0:03:23]} hxg5 {[%emt 0:00:06]} 23. Nc4 {[%emt 0:01:59]} Qe6 {[%emt 0:05:58]} 24. Ne3 {[%emt 0:01:16]} Qc6 {[%emt 0:00:23]} 25. Rad1 {[%emt 0:03:11]} Rd6 {[%emt 0:02:03]} 26. Nf5 {[%emt 0:03:29]} Rdd8 {[%emt 0:00:47]} 27. Qe2 {[%emt 0:14:31]} Qa4 {[%emt 0:03:46]} 28. b3 {[%emt 0:08:18]} Qc6 {[%emt 0:02:27]} 29. Rd3 {[%emt 0:00:09]} Rxd3 {[%emt 0:03:35]} 30. Qxd3 {[%emt 0:00:03]} Qf6 {[%emt 0:00:24]} 31. Qd7 {[%emt 0:05:22]} Qd8 {[%emt 0:00:56]} 32. Rd1 {[%emt 0:00:21]} Qxd7 {[%emt 0:00:08]} 33. Rxd7 {[%emt 0:00:04]} Rc8 {[%emt 0:00:09]} 34. Kf3 {[%emt 0:12:17]} Nf8 {[%emt 0:03:47]} 35. Re7 {[%emt 0:02:07]} Ng6 {[%emt 0:00:11]} 36. Kg4 {[%emt 0:04:12]} Kf8 {[%emt 0:01:05]} 37. Rd7 {[%emt 0:00:13]} Ke8 {[%emt 0:00:33]} 38. Rd2 {[%emt 0:01:20]} 1-0

[Event "95th Caplin Hastings Congress"]
[Site "Hastings"]
[Date "2019.12.30"]
[Round "3.21"]
[White "Unnikrishnan, Midhun P"]
[Black "Yao, Lan"]
[Result "0-1"]
[ECO "A17"]
[WhiteElo "2135"]
[BlackElo "2281"]
[Annotator "NA"]
[PlyCount "90"]
[EventDate "2019.12.28"]
[EventType "swiss"]
[EventCountry "ENG"]
[SourceTitle "playchess.com"]
[Source "ChessBase"]
[SourceQuality "1"]
[TimeControl "40/6600+30:3000+30"]

1. Nf3 {[%emt 0:09:33]} Nf6 {[%emt 0:09:38]} 2. c4 {[%emt 0:00:16]} e6 {[%emt 0:00:07]} 3. g3 {[%emt 0:00:53]} b6 {[%emt 0:00:04]} 4. Bg2 {[%emt 0:00:06]} Bb7 {[%emt 0:00:03]} 5. O-O {[%emt 0:00:29]} Be7 {[%emt 0:00:11]} 6. Nc3 {[%emt 0:02:20]} O-O {[%emt 0:01:15]} 7. d3 {[%emt 0:00:59]} d5 {[%emt 0:01:40]} 8. Qc2 {[%emt 0:06:56]} d4 {[%emt 0:11:07]} 9. Ne4 {[%emt 0:06:36]} Nxe4 {[%emt 0:00:00]} 10. dxe4 {[%emt 0:00:08]} c5 {[%emt 0:00:00]} 11. b4 {[%emt 0:10:58]} cxb4 {[%emt 0:00:00]} 12. Bb2 {[%emt 0:01:01]} Nc6 {[%emt 0:00:33]} 13. Rfd1 {[%emt 0:00:12]} Qc7 {[%emt 0:16:07]} 14. Nxd4 {[%emt 0:09:36]} Nxd4 {[%emt 0:00:07]} 15. Bxd4 {[%emt 0:00:05]} Rac8 {[%emt 0:01:44]} 16. Rac1 {[%emt 0:08:22]} Ba6 {[%emt 0:09:16]} 17. Qb2 {[%emt 0:28:43]} f6 {[%emt 0:00:58]} 18. Bh3 {[%emt 0:00:24]} Qc6 {[%emt 0:01:43]} 19. e5 {[%emt 0:02:59]} Bb7 {[%emt 0:13:43]} 20. f3 {[%emt 0:00:17]} f5 {[%emt 0:00:09]} 21. Rd2 {[%emt 0:08:08]} Bg5 {[%emt 0:10:25]} 22. e3 {[%emt 0:06:32]} Qxf3 {[%emt 0:01:05]} 23. Bg2 {[%emt 0:00:06]} Bxe3+ {[%emt 0:00:04]} 24. Kh1 Bxd2 25. Bxf3 {[%emt 0:00:35]} Bxf3+ {[%emt 0:00:14]} 26. Kg1 {[%emt 0:00:08]} Bxc1 {[%emt 0:00:04]} 27. Qxc1 {[%emt 0:00:13]} Rfd8 {[%emt 0:00:16]} 28. Kf2 {[%emt 0:00:23]} Rxd4 {[%emt 0:04:29]} 29. Kxf3 {[%emt 0:00:10]} Rcxc4 {[%emt 0:00:08]} 30. Qg5 {[%emt 0:01:47]} Rc3+ {[%emt 0:05:56]} 31. Ke2 {[%emt 0:00:33]} Rd7 {[%emt 0:01:59]} 32. g4 {[%emt 0:03:33]} Rc5 {[%emt 0:01:50]} 33. Qf4 {[%emt 0:02:00]} fxg4 {[%emt 0:00:30]} 34. Qxb4 {[%emt 0:01:05]} Rxe5+ {[%emt 0:00:07]} 35. Kf2 {[%emt 0:00:07]} h5 {[%emt 0:00:47]} 36. Qc3 {[%emt 0:01:01]} Rf7+ {[%emt 0:01:04]} 37. Kg2 {[%emt 0:00:09]} Re2+ {[%emt 0:00:34]} 38. Kg1 {[%emt 0:00:10]} Rff2 {[%emt 0:01:57]} 39. Qc8+ {[%emt 0:00:17]} Kh7 {[%emt 0:00:08]} 40. Qe8 {[%emt 0:00:05]} Rxh2 {[%emt 0:02:22]} 41. Qd7 {[%emt 0:50:08]} Rhg2+ {[%emt 0:52:10]} 42. Kh1 {[%emt 0:00:08]} Rgf2 {[%emt 0:00:57]} 43. Kg1 {[%emt 0:00:10]} g3 {[%emt 0:01:08]} 44. Qd3+ {[%emt 0:00:26]} Kh6 {[%emt 0:00:09]} 45. Qc3 {[%emt 0:00:02]} g2 {[%emt 0:00:56]} 0-1